Cogmind - Beta 14 @@@ ROGUE MODE // 2024.09.04 @ 21:44:23 Player: Beef Result: Destroyed by Shrapnel Trap Performance ------------- Evolutions (0) 0 Regions Visited (2) 400 Robots Destroyed (23) 115 Value Destroyed (611) 611 Prototype IDs (0) 0 Alien Tech Used (0) 0 Bonus (16) 16 TOTAL SCORE: 1142 Bonus ------- High Alert Combat Kills 16 Cogmind --------- Core Integrity 0/250 Matter 300/300 Energy 96/100 System Corruption 0% Temperature Cool (2) Movement Treading (160) Location -10/Subcaves Parts ------- > --- POWER (1) -------- (None) > --- PROPULSION (2) --- Light Treads Light Treads > --- UTILITY (2) ------ Scrap Shield > --- WEAPON (2) ------- Battle Rifle Barrage Gun > --- INVENTORY (5) ---- Light Treads Subdweller Monowheel Small Storage Unit Sensor Array Subdweller Shrapnel Launcher Peak State ------------ > --- POWER ------------ (None) > --- PROPULSION ------- Light Treads Light Treads > --- UTILITY ---------- Scrap Shield > --- WEAPON ----------- Battle Rifle Barrage Gun > --- INVENTORY -------- Light Treads Subdweller Monowheel Small Storage Unit Sensor Array Subdweller Machine Gun [Rating: 11] Favorites ----------- Power Ion Engine Engine Ion Engine Propulsion Light Treads Treads Light Treads Leg Aluminum Leg Utility Small Storage Unit Storage Small Storage Unit Processor Visual Processing Unit Protection Core Shielding Weapon Assault Rifle Energy Gun EM Pulse Gun Ballistic Gun Assault Rifle Build | -11 -10 -10 ------- Run | Yrd Mat Sub Slots Evolved . | . . . Power . | . . . Propulsion . | . . . Utility . | . . . Weapon . | . . . Parts Attached 29 | 7 12 10 Power 4 | 1 2 1 Engine 4 | 1 2 1 Core . | . . . Reactor . | . . . Propulsion 9 | 2 5 2 Treads 6 | 2 2 2 Leg 3 | . 3 . Wheel . | . . . Hover . | . . . Flight . | . . . Utility 5 | 1 2 2 Device . | . . . Storage 1 | 1 . . Processor 1 | . 1 . Hackware . | . . . Protection 3 | . 1 2 Artifact . | . . . Weapon 11 | 3 3 5 Energy Gun 1 | 1 . . Energy Cannon . | . . . Ballistic Gun 10 | 2 3 5 Ballistic Cannon . | . . . Launcher . | . . . Special Weapon . | . . . Impact Weapon . | . . . Slashing Weapon . | . . . Piercing Weapon . | . . . Special Melee Weapon . | . . . Unidentified Prototypes . | . . . Parts Lost 6 | . . 6 Power 2 | . . 2 Propulsion 1 | . . 1 Utility . | . . . Weapon 3 | . . 3 Highest Loss Streak 3 | . . 3 To Critical Strikes . | . . . Average Slot Usage (%) 88 | . 91 86 Engine 8 | . 14 4 Treads 21 | . 12 28 Leg 6 | . 15 . Storage 13 | . 14 13 Processor 8 | . 1 13 Protection 2 | . 4 . Ballistic Gun 26 | . 28 26 Peak Build Rating 11 | 6 8 11 Average Rating 7 | 4 6 8 On Entrance 4 | . 6 8 Naked Turns . | . . . Heaviest Build 24 | 14 14 24 Greatest Support 40 | 40 40 40 Greatest Overweight (x) . | . . . Average Overweight (x) . | . . . Largest Inventory Capacity 8 | 8 8 8 Average Capacity 7 | 6 8 7 Most Carried 8 | 2 8 8 Average Carried 6 | . 6 6 Final Capacity 8 | 8 8 5 Final Carried 7 | 2 7 5 Class Distribution -------------------- 100% | Mutant Dominant Class ---------------- Mutant | -10/Materials Mutant | -10/Subcaves Resources | -11 -10 -10 ----------- Run | Yrd Mat Sub Matter Collected 946 | 163 455 328 Remotely . | . . . Salvage Created 752 | . 471 281 Parts 56 | . 40 16 Haulers Intercepted 1 | . 1 . Recyclers Shooed 4 | . 4 . Parts Field Recycled . | . . . Retrieved Matter . | . . . Parts Self-Destructed 7 | . . 7 Prevented . | . . . Kills | -11 -10 -10 ------- Run | Yrd Mat Sub Combat Hostiles Destroyed 20 | . 14 6 Guns 20 | . 14 6 Classes Destroyed 7 | . 5 2 Hauler 1 | . 1 . Operator 1 | . 1 . Watcher 1 | . 1 . Swarmer 6 | . 6 . Grunt 8 | . 8 . Sentry 1 | . . 1 Subdweller 5 | . . 5 Best Kill Streak 10 | . 10 2 Combat Bots Only 10 | . 10 2 Max Kills in Single Turn 1 | . 1 1 Gunslinging . | . . . Exploded . | . . . Melee . | . . . Uniques/NPCs Destroyed . | . . . Combat | -11 -10 -10 -------- Run | Yrd Mat Sub Hostile Shots Fired 118 | . 68 50 Missed 30 | . 14 16 Damage Taken 1385 | . 566 819 Core 264 | . 59 205 Absorbed by Shields . | . . . Core Remaining (%) 100 | 100 . . Volleys Fired 119 | . 69 50 Largest 2 | . 2 2 Hottest 55 | . 40 55 Shots Fired 218 | . 138 80 Gun 218 | . 138 80 Cannon . | . . . Launcher . | . . . Special . | . . . Kinetic 218 | . 138 80 Thermal . | . . . Explosive . | . . . Electromagnetic . | . . . Robot Hit Streak 13 | . 8 13 Robot Miss Streak 4 | . 4 3 Penetration Max . | . . . Secondary Targets 2 | . 2 . Max Gunslinging Chain 1 | . 1 . Shots Hit Robots 129 | . 89 40 Core Hits 45 | . 30 15 Critical Kills . | . . . Critical Parts Destroyed 3 | . 2 1 Critical Strikes 3 | . 2 1 Destroy 3 | . 2 1 Melee Attacks . | . . . Impact . | . . . Slashing . | . . . Piercing . | . . . Sneak Attacks . | . . . Combat Hostiles . | . . . Follow-up Attacks . | . . . Damage Inflicted 1494 | . 1073 421 Guns 1490 | . 1069 421 Cannons . | . . . Explosions . | . . . Melee . | . . . Ramming 4 | . 4 . Kinetic 1490 | . 1069 421 Thermal . | . . . Explosive . | . . . Electromagnetic . | . . . Impact . | . . . Slashing . | . . . Piercing . | . . . Highest Corruption . | . . . Average Corruption . | . . . Corruption Purged . | . . . Corruption Blocked . | . . . Overload Shots . | . . . Overflow Damage . | . . . Projectiles . | . . . Explosions . | . . . Melee . | . . . Knockbacks . | . . . Impact . | . . . Kinetic . | . . . Secondary . | . . . Self-Inflicted Damage . | . . . Shots . | . . . Rammed 2 | . 2 . Targets Rammed 2 | . 2 . Kicked . | . . . Crushed . | . . . Highest Temperature 224 | . 12 224 Average Temperature 58 | . 7 131 Received Heat Transfer 626 | . 174 452 Siege Activations . | . . . Robots Corrupted . | . . . Combat Hostiles . | . . . Parts Fried . | . . . Impact Corruptions . | . . . Robots Melted . | . . . Combat Hostiles . | . . . Parts Melted . | . . . Heat Transferred . | . . . Parts Sabotaged . | . . . Parts Stolen . | . . . Parts Stripped . | . . . Power Chain Reactions . | . . . Alert | -11 -10 -10 ------- Run | Yrd Mat Sub Peak Influence 444 | . 444 . Initial . | . . . Average 282 | . 318 . Maximum Alert Level 2 | . 2 . Low Security (%) 20 | 100 10 . Level 1 61 | . 69 . Level 2 18 | . 20 . Level 3 . | . . . Level 4 . | . . . Level 5 . | . . . High Security . | . . . Max Security . | . . . Squads Dispatched 3 | . 3 . Investigation 2 | . 2 . Extermination . | . . . Reinforcement 1 | . 1 . Assault . | . . . Garrison . | . . . Intercept . | . . . Searches Triggered . | . . . Construction Impeded . | . . . Haulers Reinforced . | . . . Active Scanning Responses . | . . . Cargo Convoy Interrupts . | . . . Stealth | -11 -10 -10 --------- Run | Yrd Mat Sub Distress Signals 4 | . 4 . Communications Jammed . | . . . Distress Signals . | . . . Times Spotted 34 | . 28 6 Peak Tracking Total 7 | . 7 2 Tactical Retreats 7 | . 7 . Traps | -11 -10 -10 ------- Run | Yrd Mat Sub Traps Triggered 2 | . 1 1 Indirectly . | . . . Trap Hack Attempts . | . . . Triggered . | . . . Disarmed . | . . . Reprogrammed . | . . . Reused . | . . . Traps Extracted . | . . . Installed . | . . . Triggered . | . . . Machines | -11 -10 -10 ---------- Run | Yrd Mat Sub Machines Disabled . | . . . Max in Single Turn . | . . . Machines Repaired . | . . . Machines Dismantled . | . . . Machines Sabotaged . | . . . Overloaded Fab Kills . | . . . Hacking | -11 -10 -10 --------- Run | Yrd Mat Sub Machines Accessed 5 | . 4 1 Terminals 3 | . 3 . Fabricators . | . . . Repair Stations . | . . . Recycling Units 1 | . 1 . Scanalyzers . | . . . Garrison Access . | . . . Total Hacks 13 | . 8 5 Successful 8 | . 3 5 Failed 5 | . 5 . Catastrophic . | . . . Database Lockouts . | . . . Manual 6 | . 6 . Terminals 6 | . 6 . Fabricators . | . . . Repair Stations . | . . . Recycling Units 2 | . 2 . Scanalyzers . | . . . Garrison Access . | . . . Terminal Hacks 5 | . . 5 Record 5 | . . 5 Fabricator Hacks . | . . . Repair Station Hacks . | . . . Recycling Unit Hacks . | . . . Scanalyzer . | . . . Garrison Access Hacks . | . . . Unauthorized Hacks 3 | . 3 . Terminals 2 | . 2 . Botnet 2 | . 2 . Fabricators . | . . . Repair Stations . | . . . Recycling Units 1 | . 1 . Tunnel 1 | . 1 . Scanalyzers . | . . . Garrison Access . | . . . Data Cores Recovered . | . . . Used . | . . . Hacking Detections 3 | . 3 . Full Trace Events 1 | . 1 . Feedback Events . | . . . Feedback Blocked . | . . . Robot Schematics Acquired . | . . . Robots Built . | . . . Authchips . | . . . Time . | . . . Total Robot Build Rating . | . . . Part Schematics Acquired . | . . . Parts Built . | . . . Authchips . | . . . Time . | . . . Total Part Build Rating . | . . . Parts Repaired . | . . . Time . | . . . Parts Recycled . | . . . Recycled Matter . | . . . Retrieved Matter . | . . . Retrieved Components . | . . . Parts Scanalyzed . | . . . Part Schematics Acquired . | . . . Parts Damaged . | . . . Bothacking | -11 -10 -10 ------------ Run | Yrd Mat Sub Used RIF Installer . | . . . Robots Hacked . | . . . Non-combat . | . . . Combat . | . . . Robot Hacks Applied . | . . . Relay Couplers Released . | . . . Fabnet Peak Effective % . | . . . Robots Rewired . | . . . Allies Hacked . | . . . Hacks Repelled . | . . . Allies | -11 -10 -10 -------- Run | Yrd Mat Sub Total Allies . | . . . Largest Group . | . . . Highest-Rated Group . | . . . Highest-Rated Ally . | . . . Total Orders . | . . . Ally Attacks . | . . . Total Damage . | . . . Kills . | . . . Allies Corrupted . | . . . Allies Melted . | . . . Intel | -11 -10 -10 ------- Run | Yrd Mat Sub Robot Analysis Total . | . . . Derelict Logs Recovered 1 | . . 1 Drone Launches . | . . . Drone Recoveries . | . . . Exploration | -11 -10 -10 ------------- Run | Yrd Mat Sub Turns Passed 1766 | 92 715 959 Spaces Moved 908 | 55 344 509 Core 6 | 6 . . Treads 680 | 49 122 509 Legs 222 | . 222 . Wheels . | . . . Hover . | . . . Flight . | . . . Fastest Speed 50 | 50 120 160 Average Speed 149 | 148 134 160 Slowest Speed 160 | 160 160 160 Overloaded Moves . | . . . Propulsion Burnouts . | . . . Robots Hopped . | . . . Cave-ins Triggered . | . . . Exploration Rate (%) 27 | 4 35 42 Regions Visited 2 Branch Regions 1 Pre-discovered Areas 2 | . 1 1 Known Exits Taken . | . . . Unknown Exits Taken 2 | 1 1 . Scrap Searched 8 | . . 8 Spaces Dug . | . . . Terrain Destroyed . | . . . Melee . | . . . Projectile . | . . . AOE . | . . . Terrain Rammed . | . . . Walls Destroyed . | . . . Machines Disabled . | . . . Actions | -11 -10 -10 --------- Run | Yrd Mat Sub Total 1117 | 63 469 585 Wait 17 | . 16 1 Move 906 | 54 343 509 Hop . | . . . Pick Up 19 | 1 12 6 Fast Attach 14 | 7 4 3 Attach 4 | . . 4 Detach 3 | 1 1 1 Swap 11 | . 8 3 Drop 22 | . 14 8 Fire 119 | . 69 50 Melee . | . . . Ram . | . . . Kick . | . . . Crush 2 | . 2 . Escape Stasis . | . . . Rewire . | . . . Trap . | . . . Miscellaneous . | . . . Route ------- -11/Scrapyard -10/Materials (discovered 2 exits: [*Mat] / *Sub) -10/Subcaves History --------- Turn | Location | Event 8 | -11/Scrapyard | Discovered new exit (range 13) 93 | -11/Scrapyard | Entered Materials 251 | -10/Materials | Destroyed 10 combat bots 314 | -10/Materials | Build established: Mutant 515 | -10/Materials | Discovered new exit (range 4) 799 | -10/Materials | Discovered new exit (range 5) 808 | -10/Materials | Entered Subcaves 860 | -10/Subcaves | Core integrity fell below 50% 882 | -10/Subcaves | Lost 3 parts (1p2w) 950 | -10/Subcaves | Learned location of Zion (-7) 950 | -10/Subcaves | Met a Zionite searching for "candidates" 1113 | -10/Subcaves | Core integrity fell below 20% 1163 | -10/Subcaves | Lost 3 parts (1p1n1w) 1196 | -10/Subcaves | Shifting Twisted Machinery released Sub. Monowheel 1205 | -10/Subcaves | Shifting Twisted Machinery released Battle Rifle 1226 | -10/Subcaves | Visited Clippyterm 1230 | -10/Subcaves | Learned Factory fabricator intel 1230 | -10/Subcaves | Learned Factory stockpile data 1274 | -10/Subcaves | Shifting Twisted Machinery released Sub. Machine Gun 1381 | -10/Subcaves | Learned Materials emergency access door positions 1437 | -10/Subcaves | A swath of the cavern ceiling suddenly collapsed 1767 | -10/Subcaves | Destroyed by Shrapnel Trap Last Messages --------------- 01704_ Dropped Lgt. Treads. 01705_ Dropped Aluminum Leg. 01710_ Acquired Scrap Shield. 01713_ Discarded Visual Processing Unit. 01715_ Dropped Lgt. Assault Rifle. 01716_ Dropped Core Shielding. 01716_ Dropped Sub. Monowheel. 01717_ Dropped Sml. Storage Unit. 01721_ Acquired Sml. Storage Unit. 01722_ Acquired 20 matter. 01732_ Acquired 10 matter. 01736_ Subatomizers dissect the Sub. Beam Cannon. 01752_ Dropped Scrap Shield. 01753_ Acquired Scrap Shield. 01754_ Acquired 10 matter. 01758_ Subatomizers dissect the Sub. Beam Cannon. 01759_ Dropped Sub. Machine Gun. 01761_ Acquired Sub. Shrapnel Launcher. 01767_ Triggered Shrapnel Trap. 01767_ An expanding cloud of shrapnel blasts out in all directions. Map ----- +----------------------------------------------------+ | | | | | | | | | | | | | | | | | | | | | | | | | | | | | | | | | | | | | ?????????????????????????????????????????????????? | | ????????????????????########?????????????????????? | | ??????????????????### <<<< ###???????????????????? | | ?????????????????## < [ < ##??????????????????? | | ?????????????????#" |! * <#??????????????????? | | ????????????????## ]%%% ! <##?????????????????? | | ????????????????#<< [%#%= << #?????????????????? | | ????????????????#< !|%%%@ < #?????????????????? | | ????????????????#< ==[] ] < <#?????????????????? | | ????????????????#< =##### & #?????????????????? | | ????????????????# =# &<<##?????????????????? | | ????????????????## "## !%& < #??????????????????? | | ?????????????????#### ## < ##??????????????????? | | ??????????????????###" "#######?????????????????? | | ??????????##???#### " ### #?????????????????? | | ?????????## #### #?????????????????? | | ????????## ########## #??????????????? | | ???????## #??????? #??????????????? | | ??????## ##??????? #??????????????? | | ### ##??????# #??????????????? | | ###????# #??????????????? | | ?# ##???# #??????????????? | | ?### #???# #??????????????? | | ???# ## ##### #??????????????? | | ?# ### ??????????????? | | ? ### ###?????????????? | | ?# ## ##???????????????? | | ### ####?#### ##???????????????#? | | # #####????? #??????????????? ## | | # ## ## ###### ####??######?????? # | | ?# ??# ### #### ##?# #?????? # | | ??# ???# ## ## ### ##????? | +----------------------------------------------------+ Best States ------------- Heat Dissipation 25 Energy Generation 10 Energy Capacity 250 Matter Stores 300 Matter Capacity 300 Sight Range 18 Terrain Scan Density 10 Armor Coverage 800 Core Shielding 20 Evasion (%) 55 Recoil Reduction 2 Item Schematics ----------------- None Robot Schematics ------------------ None Fabricated ------------ Nothing Alien Tech Used ----------------- None Achievements -------------- None Challenges ------------ None Game ------ Seed LaserPropulsionPerforator Manual? 0 Play Time 00:10:29 Cumulative 119.9 hours Start 2024.09.04 @ 13:37:03 End 2024.09.04 @ 21:44:23 Sessions 3 Manual Loads 0 Difficulty Rogue Special Mode None Game No. 139 Rogue 139 Adventurer 0 Explorer 0 Win Type - Total 2 Types 2/0/0/0/0/0/0/0/0 Lore% 56 Gallery% 64 Achievement% 48 Wizard Run 0 Options --------- Layout 0 ASCII 0 Keyboard 1 Movement Numpad Keybinds 0 Fullscreen 2 Font 18/SmallcapsGlow Map View 76x50 Zoom Use 0% Tactical HUD 1 Map Filters NONE Filters NONE Steam 1 RUN: 32c06b98-a58b-4e23-8347-f1966e11bc25